bitfinex/quotes_ETHUSD_20250620
["timestamp","ask_amount","ask_price","bid_price","bid_amount"]
[1750418243586,8.16807654,2545.2,2544.5,0.7978]
[1750418243819,8.16807654,2545.2,2545.0,3.92913457]
[1750418244023,8.16807654,2545.2,2544.7,0.8278]
[1750418244024,1.67807654,2545.2,2545.1,3.92911869]
[1750418244230,8.16807654,2545.2,2544.7,0.8278]
[1750418244538,8.16807654,2545.2,2544.9,3.92938336]
[1750418244725,6.491,2545.1,2544.9,3.92938336]
[1750418244910,6.491,2545.1,2544.7,0.8278]
[1750418245251,1.67807654,2545.2,2544.8,3.92958189]
[1750418245440,6.498,2545.1,2544.8,3.92958189]
[1750418245742,6.498,2545.1,2544.9,3.9294099]
[1750418245936,6.498,2545.1,2545.0,3.92925652]
[1750418247840,1.67807654,2545.2,2545.1,3.92911869]
[1750418248146,18.17607654,2545.2,2545.1,3.92911869]
[1750418248364,18.17407654,2545.2,2545.1,3.92911869]
[1750418248510,11.67807654,2545.2,2544.9,3.92937774]
[1750418248715,11.67807654,2545.2,2544.7,0.47578077]
[1750418248716,11.67807654,2545.2,2545.1,0.7728]
[1750418249755,11.67807654,2545.2,2545.1,4.70191869]
[1750418249953,11.67807654,2545.2,2544.8,3.92950158]
[1750418250429,6.495,2545.1,2544.8,3.92950158]
[1750418250961,6.495,2545.1,2544.7,3.92973547]
[1750418251131,6.495,2545.1,2544.9,3.9293423]
[1750418251452,6.495,2545.1,2544.6,0.7728]
[1750418251669,6.495,2545.1,2544.9,3.92936114]
[1750418252031,6.495,2545.1,2544.6,4.70263458]
[1750418252352,6.495,2545.1,2544.6,0.7728]
[1750418252655,6.495,2545.1,2544.7,3.92959825]
[1750418252856,6.495,2545.1,2544.7,3.92973631]
[1750418253358,6.495,2545.1,2544.8,3.92955804]
[1750418254056,6.495,2545.1,2544.7,3.9296514]
[1750418255665,6.495,2545.1,2544.7,3.9045014]
[1750418255877,6.495,2545.1,2544.8,3.92951292]
[1750418256574,10.42411925,2545.1,2544.7,3.92965185]
[1750418256741,6.495,2545.1,2544.7,3.92965185]
[1750418257245,10.42415937,2545.1,2544.7,3.92965185]
[1750418257562,10.42415937,2545.1,2544.6,4.70260713]
[1750418257563,10.0,2545.0,2544.6,4.70260713]
[1750418258065,10.0,2545.0,2544.7,3.92968355]
[1750418258754,10.0,2545.0,2544.6,4.70260761]
[1750418258952,10.0,2545.0,2544.8,3.92956218]
[1750418259146,10.0,2545.0,2544.7,3.92966222]
[1750418259554,10.0,2545.0,2544.8,3.92957416]
[1750418259773,10.0,2545.0,2544.7,3.92966386]
[1750418260287,10.0,2545.0,2544.9,3.92929665]
[1750418260436,10.0,2545.0,2544.8,3.9294907]
[1750418260967,10.0,2545.0,2544.9,3.92942748]
[1750418261170,6.484,2545.1,2545.0,3.92927308]
[1750418261338,16.485,2545.2,2545.1,4.74791869]
[1750418261551,16.485,2545.2,2544.2,10.41550562]
[1750418261552,16.485,2545.2,2544.8,4.74831796]
[1750418261965,3.9291905,2545.1,2544.7,3.92972304]
[1750418262252,20.41404919,2545.2,2544.7,3.92966195]
[1750418262578,3.92913875,2545.1,2544.7,3.92966195]
[1750418262887,6.486,2545.0,2544.7,3.92966195]
[1750418263179,6.486,2545.0,2544.8,3.92956185]
[1750418263681,6.486,2545.0,2544.7,3.92961221]
[1750418263852,6.486,2545.0,2544.8,3.92956679]
[1750418264380,6.486,2545.0,2544.9,3.92942748]
[1750418265164,6.481,2545.1,2544.5,0.8188]
[1750418265361,6.481,2545.1,2545.0,3.92921301]
[1750418266086,6.84501507,2545.1,2545.0,3.92921301]
[1750418266783,6.84507068,2545.1,2545.0,3.92921301]
[1750418267152,6.84507875,2545.1,2545.0,3.92921301]
[1750418267685,0.36407875,2545.1,2545.0,3.92921301]
[1750418268359,10.0,2545.2,2545.0,3.92921301]
[1750418268671,10.0,2545.2,2545.1,3.92911869]
[1750418268875,10.36454527,2545.2,2545.0,3.92919704]
[1750418269095,0.36455582,2545.1,2545.0,3.92919704]
[1750418269462,10.0,2545.2,2545.0,3.92919704]
[1750418269691,0.36455868,2545.1,2545.0,3.92919704]
[1750418270622,0.3645593,2545.1,2545.0,3.92919704]
[1750418271259,0.36469272,2545.1,2545.0,3.92919704]
[1750418271600,0.36469416,2545.1,2545.0,3.92919704]
[1750418272396,10.0,2545.2,2545.1,3.92911869]
[1750418272603,10.36469491,2545.2,2545.0,3.92918501]
[1750418272823,10.0,2545.2,2545.1,3.92911869]
[1750418272991,10.36469522,2545.2,2545.1,3.92911869]
[1750418273300,10.36469522,2545.2,2544.9,4.74010852]
[1750418273468,0.36469522,2545.1,2545.0,3.92921114]
[1750418273663,0.36492398,2545.1,2545.0,3.92921114]
[1750418274086,0.36495928,2545.1,2545.0,3.92921114]
[1750418274602,0.36506277,2545.1,2545.0,3.92921114]
[1750418275292,0.36507244,2545.1,2545.0,3.92921114]
[1750418275822,0.36507723,2545.1,2545.0,3.92921114]
[1750418276319,0.36507723,2545.1,2544.9,3.92933243]
[1750418276530,0.36507163,2545.0,2544.9,3.92933243]
[1750418277215,0.36507359,2545.0,2544.9,3.92933243]
[1750418277412,0.36507359,2545.0,2544.8,4.74165501]
[1750418277719,0.36507359,2544.9,2544.8,4.74165501]
[1750418278294,0.36510954,2544.9,2544.8,4.74165501]
[1750418278511,10.0,2545.2,2544.9,3.929425]
[1750418278814,0.36517434,2545.1,2544.9,3.929425]
[1750418279017,0.36517434,2545.0,2544.9,3.929425]
[1750418280215,0.36521417,2545.0,2544.9,3.929425]
[1750418280776,0.36523392,2545.0,2544.9,3.929425]
[1750418281526,0.36525083,2545.0,2544.9,3.929425]
[1750418282087,0.36525083,2545.0,2544.8,4.74158571]
[1750418282424,10.0,2545.2,2544.9,3.92942748]
[1750418282620,0.36523563,2545.1,2545.0,3.92927308]
[1750418282848,0.36523563,2545.1,2545.0,4.45253453]
[1750418283024,15.77881858,2546.2,2545.1,0.7762]
[1750418283324,15.77881858,2546.2,2545.4,3.92865007]
[1750418283325,4.69576612,2545.9,2545.4,3.92865007]
[1750418283491,6.68519366,2545.8,2545.4,3.92865007]
[1750418283685,6.68519366,2545.8,2545.3,3.92877006]
[1750418283686,6.466,2545.8,2545.5,3.92849815]
[1750418283920,6.86591979,2545.8,2545.5,3.92849815]
[1750418284500,0.7678,2545.9,2545.2,3.92896432]
[1750418284707,6.467,2545.8,2545.6,3.92821645]
[1750418285536,6.467,2545.8,2545.5,4.75751117]
[1750418285739,6.467,2545.8,2545.6,3.92834162]
[1750418287341,10.0,2546.0,2545.5,0.8291]
[1750418287499,10.0,2546.0,2545.7,3.92809684]
[1750418287707,0.8001,2546.7,2545.8,0.84378019]
[1750418288038,10.0,2546.5,2546.3,3.92726277]
[1750418288243,6.68279528,2546.6,2546.3,3.92726277]
[1750418288244,6.464,2546.6,2546.3,3.92726277]
[1750418288417,10.0,2546.5,2546.3,3.92726277]
[1750418288619,10.0,2546.5,2546.2,3.92735073]
[1750418288923,10.0,2546.5,2545.8,4.73245579]
[1750418288924,3.9272964,2546.3,2545.8,4.73245579]
[1750418289123,3.9272964,2546.3,2545.8,0.8045]
[1750418289330,6.466,2546.3,2545.9,3.92787975]
[1750418289639,13.92170618,2546.3,2545.8,0.8045]
[1750418289806,17.84900369,2546.3,2545.8,3.92795937]
[1750418290126,13.92170618,2546.3,2545.9,3.92786948]
[1750418290324,7.1230876,2546.3,2545.9,3.92786948]
[1750418291641,3.92780442,2546.0,2545.6,0.8097]
[1750418291847,6.03607353,2546.0,2545.5,3.928415]
[1750418293027,6.03607353,2546.0,2545.6,3.92834067]
[1750418294745,2.10826911,2546.0,2545.7,3.9281191]
[1750418294949,16.463,2546.1,2545.8,3.92794347]
[1750418295855,16.463,2546.1,2545.6,3.92824059]
[1750418296016,20.39058316,2546.1,2545.5,3.92845088]
[1750418296531,20.39058316,2546.1,2545.7,3.92817729]
[1750418297317,16.463,2546.1,2545.7,3.92809308]
[1750418297549,10.0,2546.1,2545.8,3.9278878]
[1750418297832,16.461,2546.1,2545.8,3.92789793]
[1750418298050,16.461,2546.1,2545.7,3.92814681]
[1750418298247,20.3885755,2546.1,2545.6,3.92825408]
[1750418298568,10.0,2546.0,2545.6,3.92825408]
[1750418298771,16.461,2546.1,2545.7,3.92819263]
[1750418299081,20.38857826,2546.1,2545.7,3.92819263]
[1750418299236,10.0,2545.9,2545.6,3.92828434]
[1750418299621,10.0,2546.0,2545.6,3.92828434]
[1750418300371,10.0,2545.9,2545.5,3.92842567]
[1750418300662,13.92774106,2546.0,2545.5,3.92842567]
[1750418301032,10.0,2545.9,2545.5,3.92842567]
[1750418301234,3.9279508,2545.9,2545.4,4.75467396]
[1750418301442,10.0,2545.9,2545.5,3.92849631]
[1750418301740,10.0,2545.9,2545.4,4.75473435]
[1750418301741,10.0,2545.9,2545.4,4.75466885]
[1750418301925,13.92798958,2545.9,2545.4,4.75466885]
[1750418302859,10.0,2545.9,2545.4,0.8261]
[1750418303021,10.0,2545.9,2545.5,3.92836957]
[1750418303662,10.0,2545.9,2545.6,3.9283188]
[1750418304842,10.0,2545.9,2545.7,3.92816618]
[1750418305462,10.0,2545.9,2545.7,3.92808918]
[1750418305663,6.455,2546.0,2545.9,3.92774066]
[1750418305962,1.69,2546.2,2545.9,3.92774066]
[1750418305963,6.455,2546.1,2545.9,3.92774066]
[1750418306159,15.61727845,2546.3,2545.9,3.92774066]
[1750418306462,6.82117033,2546.2,2545.9,3.92774066]
[1750418306683,6.457,2546.2,2545.9,3.92774066]
[1750418308092,6.457,2546.2,2545.8,4.72610693]
[1750418308251,11.69,2546.3,2546.1,3.92756351]
[1750418308452,18.147,2546.3,2546.0,3.92764325]
[1750418308992,18.143,2546.3,2546.0,3.92764325]
[1750418309366,18.143,2546.3,2546.1,3.92756808]
[1750418309769,0.8243,2546.8,2546.2,3.92742125]
[1750418310000,5.61681627,2546.6,2546.2,3.92742125]
[1750418310155,10.58326279,2546.5,2546.1,3.92748488]
[1750418310489,0.36453818,2546.4,2546.1,3.92748488]
[1750418310988,0.36453818,2546.4,2546.2,3.92741722]
[1750418311192,0.36453818,2546.3,2546.2,3.92741722]
[1750418311358,0.36453818,2546.4,2546.2,3.92741722]
[1750418311898,0.36453818,2546.4,2546.3,3.92726701]
[1750418312200,6.81683261,2546.5,2546.3,3.92726701]
[1750418312383,6.452,2546.5,2546.2,3.92735994]
[1750418314194,0.36485019,2546.4,2546.2,3.92735994]
[1750418314392,0.36486714,2546.4,2546.3,3.92725261]
[1750418314597,16.452,2546.5,2546.4,3.92711278]
[1750418314807,0.36480093,2546.5,2546.3,3.92718584]
[1750418314957,0.36480654,2546.5,2546.3,3.92718584]
[1750418315162,1.69,2546.6,2546.3,3.92718584]
[1750418316677,1.69,2546.6,2546.3,3.92726701]
[1750418317298,1.69,2546.6,2546.4,3.92703608]
[1750418318403,1.69,2546.6,2546.3,4.79406288]
[1750418318768,1.69,2546.6,2546.3,0.8668687]
[1750418318982,1.69,2546.6,2546.4,3.92710224]
[1750418320323,12.4822,2547.0,2546.6,3.92669414]
[1750418320488,6.44,2546.8,2546.6,3.92669414]
[1750418320684,10.0,2546.8,2546.7,3.92663069]
[1750418320898,12.4822,2547.0,2546.9,3.92634182]
[1750418320899,1.682,2547.0,2546.9,3.92634182]
[1750418321217,18.123,2547.0,2546.9,3.92634182]
[1750418321571,1.682,2547.0,2546.9,3.92634182]
[1750418322073,1.682,2547.4,2547.0,4.70146102]
[1750418322399,0.36446886,2547.3,2547.1,3.92596694]
[1750418322777,1.682,2547.4,2547.2,3.92587939]
[1750418323103,11.682,2547.4,2547.1,3.92595074]
[1750418323866,1.682,2547.4,2547.1,3.92595074]
[1750418324211,11.682,2547.4,2547.1,3.92595074]
[1750418324421,11.682,2547.4,2547.0,4.70149813]
[1750418324602,15.6076025,2547.4,2547.0,3.92609813]
[1750418324771,1.682,2547.4,2547.0,3.92609813]
[1750418324968,15.60765745,2547.4,2546.9,3.92625981]
[1750418325174,22.40627603,2547.4,2546.9,3.92625981]
[1750418325474,11.682,2547.4,2547.0,3.92608803]
[1750418325672,6.438,2547.3,2547.0,3.92608803]
[1750418326973,6.438,2547.3,2547.1,3.92602253]
[1750418327399,6.438,2547.3,2547.0,3.92610373]
[1750418327710,6.438,2547.3,2547.1,3.92595836]
[1750418328085,6.438,2547.3,2547.0,3.926083]
[1750418329885,6.438,2547.3,2547.0,3.92610496]
[1750418334313,6.438,2547.3,2547.0,3.92609634]
[1750418334512,6.438,2547.3,2547.1,3.92601887]
[1750418335099,8.107,2547.4,2547.1,3.92601887]
[1750418335284,8.107,2547.4,2547.0,3.92612639]
[1750418335927,10.0,2547.3,2547.1,3.92591316]
[1750418336623,10.0,2547.3,2547.2,3.92587939]
[1750418336825,1.682,2547.4,2547.1,3.9259443]
[1750418337032,10.0,2547.3,2547.2,3.92587939]
[1750418337524,18.105,2547.4,2547.3,3.92572527]
[1750418337728,18.46909995,2547.4,2547.3,3.92572527]
[1750418338329,18.46908936,2547.4,2547.3,3.92572527]
[1750418338930,10.0,2547.3,2547.2,3.92587939]
[1750418339537,8.105,2547.4,2546.9,3.92633585]
[1750418339719,1.682,2547.4,2547.3,3.92572527]
[1750418339902,8.102,2547.4,2547.3,3.92572527]
[1750418340106,1.682,2547.4,2547.3,3.92572527]
[1750418340307,1.682,2547.4,2547.3,3.96498149]
[1750418340615,1.682,2547.4,2547.3,3.92572527]
[1750418340816,1.682,2547.4,2547.3,4.78914221]
[1750418341729,16.42,2547.7,2547.5,3.92535095]
[1750418343133,16.42,2547.7,2547.4,3.92549257]
[1750418343337,16.42,2547.7,2547.3,3.92566321]
[1750418343509,3.92542049,2547.5,2547.0,3.9260507]
[1750418343714,7.16286006,2547.6,2547.0,3.9260507]
[1750418343715,0.8307,2547.4,2547.1,3.92594815]
[1750418344741,0.8307,2547.4,2547.2,3.92587445]
[1750418345040,0.8125,2547.6,2547.4,3.92548869]
[1750418345250,6.417,2547.5,2547.4,3.92548869]
[1750418345546,6.417,2547.6,2547.3,3.92565321]
[1750418345945,6.417,2547.7,2547.5,3.92540909]
[1750418346645,0.36460546,2547.6,2547.2,3.92575187]
[1750418346847,0.36460546,2547.6,2547.3,3.92570688]
[1750418347051,0.36460546,2547.6,2547.2,3.92583449]
[1750418347237,0.36457076,2547.6,2547.2,3.92583449]
[1750418347551,0.36457076,2547.6,2547.2,0.78518015]
[1750418347754,10.2399,2548.0,2547.7,3.92495857]
[1750418347943,0.36459796,2547.9,2547.7,3.92495857]
[1750418348114,10.36459796,2547.9,2547.7,3.92495857]
[1750418348316,10.0,2547.9,2547.8,3.92495486]
[1750418348557,1.665,2548.0,2547.9,3.92480081]
[1750418348748,2.02991305,2548.0,2547.9,3.92480081]
[1750418349317,0.36491305,2548.0,2547.9,4.79112638]
[1750418349556,10.36494493,2548.2,2548.0,3.92464077]
[1750418349751,0.36494493,2548.1,2547.9,4.79110918]
[1750418350318,16.431,2548.3,2547.7,4.73856426]
[1750418350319,0.36494493,2548.2,2547.7,4.73856426]
[1750418350617,0.36494493,2548.2,2547.8,3.92482755]
[1750418351421,0.36475435,2548.2,2547.8,3.92482755]
[1750418352060,0.3647552,2548.2,2547.8,3.92482755]
[1750418352354,0.36452431,2548.2,2547.8,3.92482755]
[1750418352550,0.36452431,2548.2,2547.9,4.79110201]
[1750418353052,0.36452431,2548.2,2547.9,4.79105355]
[1750418353566,0.36448779,2548.2,2547.9,4.79105355]
[1750418353856,4.28882849,2548.2,2547.7,3.92501615]
[1750418354019,3.9243407,2548.2,2547.7,3.92501615]
[1750418354432,3.9243407,2548.2,2547.8,3.9249408]
[1750418355958,20.35228302,2548.3,2547.8,3.9249408]
[1750418356274,4.28865153,2548.2,2547.8,3.9249408]
[1750418356424,3.92435993,2548.2,2547.8,4.70995173]
[1750418357137,3.92471763,2548.0,2547.5,4.73507526]
[1750418357439,3.92471763,2548.0,2547.6,3.92525278]
[1750418357646,3.92458477,2548.1,2547.6,3.92525278]
[1750418358167,3.92458477,2548.1,2547.7,3.9250853]
[1750418358962,3.92465211,2548.0,2547.6,3.92519145]
[1750418359468,4.75352905,2548.2,2547.7,3.92509553]
[1750418359669,4.75352905,2548.2,2547.6,4.79123815]
[1750418360087,10.0,2548.1,2547.7,3.92500257]
[1750418360236,10.0,2548.1,2547.8,3.92494964]
[1750418360438,10.8291,2548.2,2547.8,3.92494964]
[1750418360750,6.419,2548.1,2547.9,3.92477132]
[1750418360951,6.419,2548.1,2547.8,4.79648103]
[1750418361158,7.2481,2548.2,2547.9,3.92479219]
[1750418361359,7.2481,2548.2,2547.8,4.79648599]
[1750418361553,7.2481,2548.2,2547.9,3.92478412]
[1750418362340,7.2481,2548.2,2547.8,4.79647272]
[1750418362568,0.8291,2548.2,2547.9,3.92477887]
[1750418362896,6.419,2548.2,2547.9,4.79690403]
[1750418363172,1.38110188,2548.4,2547.9,5.61148362]
[1750418363472,1.38110188,2548.4,2548.0,3.92456601]
[1750418363684,1.38110188,2548.4,2548.1,3.92447199]
[1750418364241,1.38110188,2548.4,2548.0,3.92456986]
[1750418364441,1.38110188,2548.4,2548.0,4.68345248]
[1750418364774,0.36462144,2548.3,2548.1,3.9244747]
[1750418364977,1.38110188,2548.4,2548.1,3.9244747]
[1750418365275,0.36458,2548.3,2548.1,3.9244747]
[1750418365645,1.38110188,2548.4,2548.1,3.9244747]
[1750418365841,0.36457734,2548.3,2548.0,4.68343583]
[1750418366269,10.36457809,2548.3,2548.0,4.68343583]
[1750418366476,13.92419925,2548.3,2547.9,3.92470553]
[1750418366984,10.0,2548.3,2547.9,3.92470553]
[1750418367275,10.0,2548.3,2547.9,3.92471829]
[1750418367478,10.0,2548.3,2548.0,3.92464447]
[1750418367847,0.3647943,2548.2,2548.0,3.92464447]
[1750418368037,10.8209,2548.1,2547.2,0.7629]
[1750418368239,0.7548,2547.7,2547.3,3.92566138]
[1750418368446,7.1748,2547.7,2547.3,3.92566138]
[1750418369055,11.09994046,2547.7,2547.3,3.92566138]
[1750418369672,11.09994046,2547.7,2547.2,3.92575059]
[1750418369878,11.09994046,2547.7,2547.3,3.92571713]
[1750418370283,11.09994046,2547.7,2547.2,3.92579014]
[1750418370949,11.09994046,2547.7,2547.3,3.92571242]
[1750418371152,11.09994046,2547.7,2547.0,0.8213]
[1750418371354,11.09994046,2547.7,2546.9,4.63971871]
[1750418371355,10.7511,2547.0,2546.9,4.63971871]
[1750418371558,10.7511,2547.0,2546.8,3.92648514]
[1750418371559,19.19883049,2547.0,2546.8,3.92648514]
[1750418371756,6.435,2547.2,2547.1,3.92595441]
[1750418371955,12.02965726,2547.2,2547.1,3.92595441]
[1750418372259,12.02965726,2547.2,2547.0,3.92611822]
[1750418372445,11.665,2547.2,2547.0,3.92611822]
[1750418372646,10.0,2547.2,2547.0,4.71135042]
[1750418372869,10.0,2547.2,2547.0,3.92610575]
[1750418373883,10.0,2547.2,2547.1,3.92603352]
[1750418374387,8.1,2547.3,2547.2,3.92587939]
[1750418374595,1.665,2547.3,2547.2,3.92587939]
[1750418375202,1.675,2547.6,2547.5,3.92541707]
[1750418375386,1.675,2547.6,2547.4,3.92548949]
[1750418375549,1.675,2547.6,2547.5,3.92541707]
[1750418376752,1.675,2547.6,2547.5,4.78882352]
[1750418376946,0.8199,2548.1,2547.5,4.78882352]
[1750418376947,1.675,2547.9,2547.8,3.92488745]
[1750418377198,18.47357486,2547.9,2547.8,3.92488745]
[1750418377749,10.36457486,2547.9,2547.8,3.92488745]
[1750418378252,10.0,2547.9,2547.8,3.92488745]
[1750418378586,10.36458917,2547.9,2547.8,3.92488745]
[1750418378881,10.0,2547.9,2547.8,3.92488745]
[1750418379084,10.36458679,2547.9,2547.8,3.92488745]
[1750418380457,1.675,2548.0,2547.9,3.92480081]
[1750418381279,1.675,2548.0,2547.9,4.70640081]
[1750418382251,10.0,2548.1,2548.0,3.92464678]
[1750418382569,10.0,2548.1,2547.9,0.7816]
[1750418382570,1.675,2548.3,2547.9,0.7816]
[1750418382771,1.675,2548.3,2548.1,3.92442677]
[1750418383082,1.675,2548.3,2548.0,3.92460971]
[1750418383791,1.675,2548.3,2547.9,3.92473737]
[1750418384357,1.675,2548.3,2548.0,3.92458079]
[1750418385983,8.102,2548.3,2548.1,3.924475]
[1750418386160,8.102,2548.3,2548.0,4.70952722]
[1750418386360,8.102,2548.3,2548.0,3.92457971]
[1750418386773,8.102,2548.3,2548.1,3.92447991]
[1750418388597,8.102,2548.3,2548.2,3.92433874]
[1750418388780,8.102,2548.3,2548.1,3.92439998]
[1750418389382,10.0,2548.4,2548.2,3.92433182]
[1750418389588,18.1,2548.4,2548.2,3.92433182]
[1750418389899,18.1,2548.4,2548.1,4.71000382]
[1750418390198,18.1,2548.4,2548.2,3.92424046]
[1750418393523,3.92348949,2548.8,2548.2,3.92424046]
[1750418393524,4.17504383,2549.1,2548.3,0.7896]
[1750418393667,3.9233328,2548.9,2548.3,0.7896]
[1750418393864,3.9233328,2548.9,2548.2,0.7848853]
[1750418393865,10.72219782,2548.7,2548.2,3.92425111]
[1750418394097,10.72219782,2548.7,2548.1,4.71403411]
[1750418394098,6.79861858,2548.7,2548.3,3.92417478]
[1750418394399,3.9235809,2548.7,2548.2,3.9242859]
[1750418394778,3.9235809,2548.7,2548.3,3.92417799]
[1750418395101,6.423,2548.6,2548.3,3.92417799]
[1750418395600,6.423,2548.6,2548.2,3.92424844]
[1750418395803,6.423,2548.6,2548.3,3.92417596]
[1750418396302,6.423,2548.6,2548.1,4.71404975]
[1750418396605,6.423,2548.6,2548.2,3.92427111]
[1750418396900,6.423,2548.6,2548.3,3.92409873]
[1750418397271,6.423,2548.6,2547.9,0.7896]
[1750418397472,6.423,2548.6,2548.2,3.92432762]
[1750418398399,6.423,2548.6,2548.3,3.92415727]
[1750418399004,6.423,2548.6,2547.9,4.71438978]
[1750418399207,6.423,2548.6,2548.4,3.92401852]
[1750418401068,0.7859,2548.8,2548.6,3.92364466]
[1750418401409,18.091,2548.7,2548.6,3.92372282]
[1750418401576,10.0,2548.6,2548.5,3.92379433]
[1750418401903,8.091,2548.7,2548.6,3.92372282]
[1750418402101,18.091,2548.7,2548.6,3.92372282]
[1750418402322,8.091,2548.7,2548.6,3.92372282]
[1750418402487,0.7995,2549.4,2548.9,3.92326101]
[1750418402815,18.67389371,2549.3,2548.9,3.92326101]
[1750418402963,0.36430857,2549.2,2548.9,3.92326101]
[1750418403368,0.36430857,2549.2,2548.9,3.92321795]
[1750418403584,0.36431786,2549.2,2548.9,3.92321795]
[1750418403781,0.36431809,2549.2,2549.1,3.92295319]
[1750418403980,0.36431809,2549.2,2548.6,6.79861858]
[1750418403981,0.36496399,2549.3,2549.2,3.92264591]
[1750418404208,10.36496399,2549.4,2549.2,3.92270063]
[1750418404412,10.36496399,2549.4,2549.3,3.92264543]
[1750418404413,10.0,2549.4,2549.3,3.92264543]
[1750418404579,10.36463319,2549.4,2549.3,3.92264543]
[1750418404990,0.36463319,2549.4,2549.3,3.92264543]
[1750418405195,17.515,2549.5,2549.3,3.92264543]
[1750418405415,11.101,2549.5,2549.4,3.92249156]
[1750418405716,17.515,2549.5,2549.4,3.92249156]
[1750418406016,1.675,2549.5,2549.4,3.92249156]
[1750418406679,1.675,2549.5,2549.4,4.70700408]
[1750418407277,8.8580439,2549.8,2549.5,3.92233771]
[1750418407577,8.8580439,2549.8,2549.6,3.92218387]
[1750418407578,10.0,2549.7,2549.6,3.92218387]
[1750418407882,2.4450439,2549.8,2549.7,3.92203004]
[1750418408215,0.7810439,2549.8,2549.7,4.68453004]
[1750418411817,0.7810439,2549.8,2549.6,0.94207918]
[1750418412017,0.7810439,2549.8,2549.6,4.86419514]
[1750418412223,0.7810439,2549.8,2549.5,3.9222013]
[1750418412406,0.7810439,2549.8,2549.6,3.92216383]
[1750418412929,0.7810439,2549.8,2549.7,3.92203004]
[1750418413131,0.7810439,2549.8,2549.6,3.92210782]
[1750418414199,0.7810439,2549.8,2549.7,3.92203004]
[1750418417303,0.7810439,2549.8,2549.6,3.92209512]
[1750418418043,0.7810439,2549.8,2549.5,3.92223405]
[1750418418521,0.7810439,2549.8,2549.5,0.47067466]
[1750418418827,0.7810439,2549.8,2549.7,3.92203004]
[1750418429444,0.7810439,2549.8,2549.4,0.78451252]
[1750418429651,0.7810439,2549.8,2549.5,3.9222184]
[1750418429855,0.7810439,2549.8,2549.5,3.92224276]
[1750418430046,0.7810439,2549.8,2549.5,3.92218569]
[1750418430428,0.7810439,2549.8,2549.5,3.92224625]
[1750418430962,0.7810439,2549.8,2549.6,3.92216264]
[1750418431268,0.7810439,2549.8,2549.6,3.922155]
[1750418431620,0.7810439,2549.8,2549.7,3.92203004]
[1750418433757,0.7810439,2549.8,2549.7,3.92045504]
[1750418434360,1.14671125,2549.8,2549.7,3.92045504]
[1750418434965,1.14661498,2549.8,2549.7,3.92045504]
[1750418435648,1.1466396,2549.8,2549.7,3.92045504]
[1750418435969,1.1466389,2549.8,2549.7,3.92045504]
[1750418436262,1.14663613,2549.8,2549.7,3.92045504]
[1750418436440,1.14663742,2549.8,2549.7,3.92045504]
[1750418437431,1.14694753,2549.8,2549.7,3.92045504]
[1750418439063,1.14694753,2549.8,2549.7,4.69215504]
[1750418439462,1.14694753,2549.8,2549.7,3.92045504]
[1750418441030,1.14707332,2549.8,2549.7,3.92045504]
[1750418441444,0.7810439,2549.8,2549.7,3.92045504]
[1750418441636,1.1470745,2549.8,2549.7,3.92045504]
[1750418441964,1.14707395,2549.8,2549.7,3.92045504]
[1750418442667,1.14707591,2549.8,2549.7,3.92045504]
[1750418443431,1.14707288,2549.8,2549.6,3.92217599]
[1750418443633,0.36602898,2549.7,2549.6,3.92217599]
[1750418444271,0.36602916,2549.7,2549.6,3.92217599]
[1750418445470,0.36602916,2549.7,2549.5,3.9223312]
[1750418445471,0.36602916,2549.7,2549.5,3.92224827]
[1750418445637,0.7810439,2549.8,2549.5,3.92224827]
[1750418445965,0.36603077,2549.7,2549.5,3.92224827]
[1750418446169,0.7615,2549.7,2549.5,3.92224827]
[1750418447081,0.7810439,2549.8,2549.6,3.92218387]
[1750418447283,0.36601185,2549.7,2549.6,3.92218387]
[1750418449274,0.7810439,2549.8,2549.7,3.92203004]
[1750418449438,1.14704582,2549.8,2549.7,3.92203004]
[1750418449882,1.14704422,2549.8,2549.7,3.92203004]
[1750418450053,1.14704503,2549.8,2549.7,3.92203004]
[1750418451274,1.14704503,2549.8,2549.6,3.9220987]
[1750418451487,0.36600113,2549.7,2549.6,3.9220987]
[1750418452745,0.36601087,2549.7,2549.6,3.9220987]
[1750418454879,0.7810439,2549.8,2549.6,3.9220987]
[1750418455175,0.7810439,2549.8,2549.5,3.92226547]
[1750418455176,0.3660125,2549.7,2549.5,3.92226547]
[1750418455484,0.7810439,2549.8,2549.5,3.92220991]
[1750418455685,0.7810439,2549.8,2549.2,3.92278176]
[1750418455686,13.18761858,2549.6,2549.2,3.92278176]
[1750418455855,2.01997339,2549.5,2549.2,3.92278176]
[1750418456059,0.36597339,2549.4,2549.2,3.92278176]
[1750418456380,1.654,2549.5,2549.1,3.92289285]
[1750418456542,0.3659851,2549.4,2549.2,3.9227993]
[1750418456747,0.3659851,2549.3,2549.2,3.9227993]
[1750418456946,0.3659851,2549.4,2549.2,3.9227993]
[1750418457199,0.3659851,2549.3,2549.2,3.9227993]
[1750418457386,1.654,2549.5,2549.2,3.9227993]
[1750418457387,0.36597693,2549.4,2549.2,3.9227993]
[1750418457552,0.36597693,2549.3,2549.2,3.9227993]
[1750418457754,0.36597693,2549.4,2549.2,3.9227993]
[1750418457977,0.36597693,2549.3,2549.2,3.9227993]
[1750418458172,0.36597693,2549.4,2549.2,3.9227993]
[1750418458562,0.36561425,2549.4,2549.2,3.9227993]
[1750418458764,0.36561425,2549.4,2549.1,3.92288316]
[1750418459193,0.36561637,2549.4,2549.1,3.92288316]
[1750418459792,0.36561637,2549.4,2549.2,3.92273184]
[1750418459989,0.36562005,2549.4,2549.2,3.92273184]
[1750418460294,0.3656206,2549.4,2549.2,3.92273184]
[1750418460995,0.3656206,2549.4,2549.3,3.92264543]
[1750418461159,1.654,2549.5,2549.3,3.92264543]
[1750418462649,0.8133,2549.7,2549.5,3.92225783]
[1750418462855,8.40842513,2549.6,2549.4,3.92241745]
[1750418463056,0.36542513,2549.5,2549.4,3.92241745]
[1750418463756,0.36542958,2549.5,2549.3,3.92256196]
[1750418464093,0.36540409,2549.5,2549.3,3.92256196]
[1750418464387,0.36540409,2549.5,2549.2,3.92272584]
[1750418464889,0.7799,2549.4,2548.7,0.7951]
[1750418465095,11.50108121,2549.4,2549.0,3.92299923]
[1750418465311,6.389,2549.3,2549.0,3.92299923]
[1750418466061,6.389,2549.3,2549.1,3.92293851]
[1750418466294,6.389,2549.3,2548.7,0.7951]